[Event "*** Titled Tuesday Blitz"]
[Site "Chess.com"]
[Date "2020.04.28"]
[Round "5"]
[White "crazy_but_lazy"]
[Black "DonPreuss"]
[Result "1-0"]
[WhiteElo "2357"]
[BlackElo "2195"]
[TimeControl "180+1"]
[EndTime "10:55:55 PDT"]
[Termination "crazy_but_lazy won on time"]

1. e4 {[%clk 0:03:00.9]} 1... e5 {[%clk 0:02:51.9]} 2. Nf3 {[%clk 0:03:00.7]}
2... d5 {[%clk 0:02:51.6]} 3. exd5 {[%clk 0:02:54.4]} 3... e4 {[%clk 0:02:51.7]}
4. Qe2 {[%clk 0:02:55]} 4... Nf6 {[%clk 0:02:51.8]} 5. d3 {[%clk 0:02:55.3]}
5... Qxd5 {[%clk 0:02:52]} 6. Nbd2 {[%clk 0:02:54.5]} 6... Be7 {[%clk
0:02:07.7]} 7. Nxe4 {[%clk 0:02:50.3]} 7... O-O {[%clk 0:02:06]} 8. c3 {[%clk
0:02:21.8]} 8... Bf5 {[%clk 0:01:50.1]} 9. Nxf6+ {[%clk 0:02:03.9]} 9... Bxf6
{[%clk 0:01:49.8]} 10. Be3 {[%clk 0:02:04.4]} 10... Nc6 {[%clk 0:01:46]} 11. Qd2
{[%clk 0:01:58]} 11... Rad8 {[%clk 0:01:39.7]} 12. d4 {[%clk 0:01:57.3]} 12...
Rfe8 {[%clk 0:01:30.1]} 13. Be2 {[%clk 0:01:57.1]} 13... Be4 {[%clk 0:01:10.5]}
14. O-O {[%clk 0:01:55.7]} 14... Qf5 {[%clk 0:01:08.3]} 15. Rad1 {[%clk
0:01:47.7]} 15... Qg6 {[%clk 0:01:07.1]} 16. Bd3 {[%clk 0:01:45.5]} 16... h5
{[%clk 0:01:06.9]} 17. Bxe4 {[%clk 0:01:44.7]} 17... Rxe4 {[%clk 0:01:02]} 18.
h3 {[%clk 0:01:44.2]} 18... Ne5 {[%clk 0:00:49.4]} 19. Nxe5 {[%clk 0:01:09.8]}
19... Bxe5 {[%clk 0:00:49.4]} 20. f3 {[%clk 0:00:58.1]} 20... Rh4 {[%clk
0:00:39.4]} 21. Bg5 {[%clk 0:00:56.3]} 21... Bf4 {[%clk 0:00:25.5]} 22. Bxf4
{[%clk 0:00:42.8]} 22... Rxh3 {[%clk 0:00:24.8]} 23. g3 {[%clk 0:00:41.5]} 23...
h4 {[%clk 0:00:23]} 24. Qg2 {[%clk 0:00:41.1]} 24... Rxg3 {[%clk 0:00:22.2]} 25.
Bxg3 {[%clk 0:00:41.3]} 25... hxg3 {[%clk 0:00:23.1]} 26. f4 {[%clk 0:00:41.2]}
26... Re8 {[%clk 0:00:23]} 27. Rfe1 {[%clk 0:00:41.5]} 27... Rd8 {[%clk
0:00:20.5]} 28. Re3 {[%clk 0:00:41.5]} 28... Qg4 {[%clk 0:00:19.5]} 29. Rde1
{[%clk 0:00:39.9]} 29... Qxf4 {[%clk 0:00:18.9]} 30. Qxg3 {[%clk 0:00:34.5]}
30... Qxg3+ {[%clk 0:00:15.5]} 31. Rxg3 {[%clk 0:00:35.4]} 31... Kf8 {[%clk
0:00:15.5]} 32. Kf2 {[%clk 0:00:34.7]} 32... Rd6 {[%clk 0:00:15.6]} 33. a4
{[%clk 0:00:33.3]} 33... Rb6 {[%clk 0:00:15.6]} 34. b4 {[%clk 0:00:31.1]} 34...
Rc6 {[%clk 0:00:15.5]} 35. Rh3 {[%clk 0:00:29.2]} 35... g6 {[%clk 0:00:13.2]}
36. a5 {[%clk 0:00:27.5]} 36... Kg7 {[%clk 0:00:12]} 37. Re7 {[%clk 0:00:22.9]}
37... Kf6 {[%clk 0:00:09.6]} 38. Rd7 {[%clk 0:00:22.6]} 38... Ke6 {[%clk
0:00:09.6]} 39. d5+ {[%clk 0:00:22.8]} 39... Kxd7 {[%clk 0:00:09.4]} 40. dxc6+
{[%clk 0:00:23.7]} 40... Kxc6 {[%clk 0:00:09.8]} 41. Rh7 {[%clk 0:00:22.9]}
41... f5 {[%clk 0:00:02.3]} 42. Rg7 {[%clk 0:00:22.8]} 42... Kb5 {[%clk
0:00:01.5]} 43. Rxc7 {[%clk 0:00:23]} 43... b6 {[%clk 0:00:01.2]} 44. Rxa7
{[%clk 0:00:22.4]} 1-0

[Event "*** Titled Tuesday Blitz"]
[Site "Chess.com"]
[Date "2020.04.28"]
[Round "5"]
[White "Gajuchess"]
[Black "Koalaskakistis"]
[Result "0-1"]
[WhiteElo "2735"]
[BlackElo "2538"]
[TimeControl "180+1"]
[EndTime "10:55:57 PDT"]
[Termination "Koalaskakistis won on time"]

1. e4 {[%clk 0:03:00.9]} 1... c5 {[%clk 0:02:59.1]} 2. Nf3 {[%clk 0:03:01.3]}
2... Nc6 {[%clk 0:02:57.8]} 3. Nc3 {[%clk 0:03:00.6]} 3... Nf6 {[%clk
0:02:56.7]} 4. Bb5 {[%clk 0:02:57.4]} 4... Qc7 {[%clk 0:02:53.6]} 5. O-O {[%clk
0:02:57]} 5... a6 {[%clk 0:02:53.2]} 6. Bxc6 {[%clk 0:02:55]} 6... dxc6 {[%clk
0:02:54.1]} 7. h3 {[%clk 0:02:53.7]} 7... e5 {[%clk 0:02:53.6]} 8. d3 {[%clk
0:02:54]} 8... h6 {[%clk 0:02:53.6]} 9. Nd2 {[%clk 0:02:49.3]} 9... g5 {[%clk
0:02:45.4]} 10. Nc4 {[%clk 0:02:45.2]} 10... Be6 {[%clk 0:02:43.6]} 11. a4
{[%clk 0:02:32]} 11... Nd7 {[%clk 0:02:31.8]} 12. a5 {[%clk 0:02:31.4]} 12...
O-O-O {[%clk 0:02:29.1]} 13. Be3 {[%clk 0:02:30.3]} 13... Be7 {[%clk 0:02:25.5]}
14. Qe1 {[%clk 0:02:22.4]} 14... h5 {[%clk 0:02:23.3]} 15. Na4 {[%clk
0:02:09.5]} 15... g4 {[%clk 0:02:15.6]} 16. Ncb6+ {[%clk 0:02:06.8]} 16... Kb8
{[%clk 0:02:08.6]} 17. Nxd7+ {[%clk 0:02:05.4]} 17... Qxd7 {[%clk 0:02:08.3]}
18. h4 {[%clk 0:02:04.5]} 18... c4 {[%clk 0:01:56.8]} 19. Nb6 {[%clk 0:01:46.7]}
19... Qe8 {[%clk 0:01:49.6]} 20. dxc4 {[%clk 0:01:45.7]} 20... Bxh4 {[%clk
0:01:48.9]} 21. Qc3 {[%clk 0:01:35.3]} 21... Be7 {[%clk 0:01:35.8]} 22. Qxe5+
{[%clk 0:01:30.8]} 22... Bd6 {[%clk 0:01:36.1]} 23. Qf6 {[%clk 0:01:31.1]} 23...
h4 {[%clk 0:01:18.6]} 24. Rad1 {[%clk 0:01:30.4]} 24... Bc7 {[%clk 0:01:00.3]}
25. Bf4 {[%clk 0:01:28]} 25... Bxf4 {[%clk 0:00:50.4]} 26. Qxf4+ {[%clk
0:01:27.6]} 26... Ka7 {[%clk 0:00:50.2]} 27. Qc7 {[%clk 0:01:10.4]} 27... Rb8
{[%clk 0:00:48]} 28. Nd7 {[%clk 0:00:45.6]} 28... Bxd7 {[%clk 0:00:43.8]} 29.
Rxd7 {[%clk 0:00:46.3]} 29... Qxe4 {[%clk 0:00:43.5]} 30. Qb6+ {[%clk 0:00:23]}
30... Ka8 {[%clk 0:00:43.6]} 31. Qd4 {[%clk 0:00:21.6]} 31... Qxc2 {[%clk
0:00:30.5]} 32. b4 {[%clk 0:00:21.7]} 32... g3 {[%clk 0:00:25.8]} 33. b5 {[%clk
0:00:20.2]} 33... cxb5 {[%clk 0:00:19.9]} 34. cxb5 {[%clk 0:00:21.1]} 34...
gxf2+ {[%clk 0:00:18]} 35. Rxf2 {[%clk 0:00:20.6]} 35... Qb1+ {[%clk 0:00:17]}
36. Kh2 {[%clk 0:00:20.7]} 36... Qxb5 {[%clk 0:00:17.9]} 37. Rfxf7 {[%clk
0:00:20.4]} 37... h3 {[%clk 0:00:16.9]} 38. g4 {[%clk 0:00:17.7]} 38... Qe2+
{[%clk 0:00:16]} 39. Rf2 {[%clk 0:00:17.4]} 39... Qb5 {[%clk 0:00:16]} 40. Qb6
{[%clk 0:00:13.3]} 40... Qxd7 {[%clk 0:00:14.5]} 0-1

[Event "*** Titled Tuesday Blitz"]
[Site "Chess.com"]
[Date "2020.04.28"]
[Round "5"]
[White "BasilSmash"]
[Black "shyam"]
[Result "0-1"]
[WhiteElo "2432"]
[BlackElo "2688"]
[TimeControl "180+1"]
[EndTime "10:55:57 PDT"]
[Termination "shyam won on time"]

1. d4 {[%clk 0:02:56.7]} 1... Nf6 {[%clk 0:02:58.4]} 2. Nf3 {[%clk 0:02:56.3]}
2... g6 {[%clk 0:02:56.7]} 3. g3 {[%clk 0:02:56.3]} 3... b5 {[%clk 0:02:56.2]}
4. Bg2 {[%clk 0:02:57.2]} 4... Bb7 {[%clk 0:02:56.7]} 5. O-O {[%clk 0:02:57.2]}
5... Bg7 {[%clk 0:02:57.2]} 6. b3 {[%clk 0:02:50]} 6... O-O {[%clk 0:02:56.9]}
7. Nbd2 {[%clk 0:02:49.1]} 7... d6 {[%clk 0:02:57]} 8. c4 {[%clk 0:02:48.9]}
8... bxc4 {[%clk 0:02:57.5]} 9. bxc4 {[%clk 0:02:49.8]} 9... Nbd7 {[%clk
0:02:57.5]} 10. Rb1 {[%clk 0:02:49.6]} 10... Rb8 {[%clk 0:02:53.9]} 11. Qc2
{[%clk 0:02:46.3]} 11... e5 {[%clk 0:02:49.8]} 12. d5 {[%clk 0:02:28.7]} 12...
Nc5 {[%clk 0:02:41.3]} 13. Ba3 {[%clk 0:02:26.6]} 13... Nfd7 {[%clk 0:02:40.2]}
14. Nb3 {[%clk 0:02:20.4]} 14... Qe7 {[%clk 0:02:08.5]} 15. Nxc5 {[%clk
0:02:17.8]} 15... Nxc5 {[%clk 0:02:09.4]} 16. Bxc5 {[%clk 0:02:17.6]} 16... dxc5
{[%clk 0:02:08.9]} 17. Nd2 {[%clk 0:02:17.6]} 17... f5 {[%clk 0:02:08.1]} 18. e4
{[%clk 0:02:14.9]} 18... f4 {[%clk 0:02:03.8]} 19. Bh3 {[%clk 0:02:11.3]} 19...
h5 {[%clk 0:02:02.8]} 20. Be6+ {[%clk 0:02:08.7]} 20... Kh7 {[%clk 0:01:54.4]}
21. h4 {[%clk 0:02:04.8]} 21... Bh6 {[%clk 0:01:47]} 22. Nf3 {[%clk 0:02:02.8]}
22... Kg7 {[%clk 0:01:47.1]} 23. Kg2 {[%clk 0:02:01.7]} 23... fxg3 {[%clk
0:01:44.4]} 24. fxg3 {[%clk 0:02:01.6]} 24... Be3 {[%clk 0:01:44.4]} 25. Rb3
{[%clk 0:01:51.7]} 25... Bd4 {[%clk 0:01:37.6]} 26. Rfb1 {[%clk 0:01:49.9]}
26... Qf6 {[%clk 0:01:37.9]} 27. Qe2 {[%clk 0:01:42]} 27... Bxd5 {[%clk
0:01:21.1]} 28. cxd5 {[%clk 0:01:32.6]} 28... Rb6 {[%clk 0:01:20.5]} 29. Bh3
{[%clk 0:01:23.3]} 29... Rfb8 {[%clk 0:01:14.4]} 30. Ng5 {[%clk 0:01:19.9]}
30... Kh8 {[%clk 0:01:07.3]} 31. Ne6 {[%clk 0:01:14.7]} 31... c4 {[%clk
0:01:05.1]} 32. Rxb6 {[%clk 0:01:12.4]} 32... Rxb6 {[%clk 0:01:04.3]} 33. Rxb6
{[%clk 0:01:03.7]} 33... Bxb6 {[%clk 0:01:01.4]} 34. Qd2 {[%clk 0:00:46.6]}
34... c3 {[%clk 0:00:57.2]} 35. Qc2 {[%clk 0:00:45.8]} 35... Qf2+ {[%clk
0:00:51.2]} 36. Qxf2 {[%clk 0:00:43.4]} 36... Bxf2 {[%clk 0:00:52.1]} 37. Nxc7
{[%clk 0:00:16.8]} 37... c2 {[%clk 0:00:49.4]} 38. d6 {[%clk 0:00:16.7]} 38...
c1=Q {[%clk 0:00:49.6]} 39. Nd5 {[%clk 0:00:15.5]} 39... Qg1+ {[%clk 0:00:48.8]}
40. Kf3 {[%clk 0:00:14.8]} 40... Qxg3+ {[%clk 0:00:49.7]} 41. Ke2 {[%clk
0:00:14.8]} 41... Qxh3 {[%clk 0:00:46.8]} 42. Kxf2 {[%clk 0:00:11.9]} 42... Qe6
{[%clk 0:00:46.7]} 0-1

[Event "*** Titled Tuesday Blitz"]
[Site "Chess.com"]
[Date "2020.04.28"]
[Round "5"]
[White "pma83"]
[Black "Confer77"]
[Result "0-1"]
[WhiteElo "2237"]
[BlackElo "2484"]
[TimeControl "180+1"]
[EndTime "10:55:57 PDT"]
[Termination "Confer77 won on time"]

1. d4 {[%clk 0:03:00.9]} 1... Nf6 {[%clk 0:02:59.9]} 2. c4 {[%clk 0:02:59.8]}
2... g6 {[%clk 0:03:00.1]} 3. Nc3 {[%clk 0:02:59.3]} 3... Bg7 {[%clk 0:03:00.2]}
4. e4 {[%clk 0:02:59.8]} 4... O-O {[%clk 0:03:00.3]} 5. Nf3 {[%clk 0:03:00.1]}
5... d6 {[%clk 0:02:58]} 6. Be2 {[%clk 0:03:00.4]} 6... e5 {[%clk 0:02:55.4]} 7.
O-O {[%clk 0:03:00.6]} 7... Na6 {[%clk 0:02:55.5]} 8. Qc2 {[%clk 0:02:38.4]}
8... exd4 {[%clk 0:02:48.7]} 9. Nxd4 {[%clk 0:02:36.2]} 9... Nc5 {[%clk
0:02:49.1]} 10. Be3 {[%clk 0:02:30.6]} 10... Re8 {[%clk 0:02:47.8]} 11. f3
{[%clk 0:02:27.2]} 11... Nh5 {[%clk 0:02:46.5]} 12. Rad1 {[%clk 0:02:07.5]}
12... Qh4 {[%clk 0:02:39.3]} 13. Bf2 {[%clk 0:02:01.1]} 13... Qg5 {[%clk
0:02:39.4]} 14. g3 {[%clk 0:01:44.1]} 14... Nf4 {[%clk 0:02:32.5]} 15. Kh1
{[%clk 0:01:42.4]} 15... Nh3 {[%clk 0:02:28.5]} 16. f4 {[%clk 0:01:41.1]} 16...
Nxf2+ {[%clk 0:02:26.2]} 17. Rxf2 {[%clk 0:01:42]} 17... Qd8 {[%clk 0:02:21.6]}
18. f5 {[%clk 0:01:37.8]} 18... c6 {[%clk 0:02:14]} 19. b4 {[%clk 0:01:25.5]}
19... Nd7 {[%clk 0:02:09.3]} 20. Nb3 {[%clk 0:01:24.4]} 20... Qe7 {[%clk
0:02:00.5]} 21. Rdf1 {[%clk 0:01:20.3]} 21... Be5 {[%clk 0:01:56.2]} 22. fxg6
{[%clk 0:01:19.4]} 22... fxg6 {[%clk 0:01:52.5]} 23. c5 {[%clk 0:01:14.3]} 23...
Nf6 {[%clk 0:01:33.7]} 24. Bc4+ {[%clk 0:01:13.5]} 24... Kg7 {[%clk 0:01:33.6]}
25. cxd6 {[%clk 0:01:10.6]} 25... Qxd6 {[%clk 0:01:34.5]} 26. Nc5 {[%clk
0:01:10.1]} 26... Bh3 {[%clk 0:01:29.4]} 27. Rd1 {[%clk 0:01:09]} 27... Qe7
{[%clk 0:01:28.3]} 28. Rfd2 {[%clk 0:01:01.8]} 28... b6 {[%clk 0:01:14.2]} 29.
Nd3 {[%clk 0:01:00.2]} 29... Bxc3 {[%clk 0:01:08.6]} 30. Qxc3 {[%clk 0:00:54.3]}
30... Qxe4+ {[%clk 0:01:08.7]} 31. Kg1 {[%clk 0:00:54]} 31... Qe3+ {[%clk
0:00:49.8]} 32. Rf2 {[%clk 0:00:52.3]} 32... Rf8 {[%clk 0:00:44.6]} 33. Re1
{[%clk 0:00:51.8]} 33... Qg5 {[%clk 0:00:42]} 34. Re7+ {[%clk 0:00:48]} 34...
Kh6 {[%clk 0:00:42.4]} 35. Nf4 {[%clk 0:00:46.4]} 35... Nh5 {[%clk 0:00:30.3]}
36. Nxh5 {[%clk 0:00:04.8]} 36... Qxe7 {[%clk 0:00:23.3]} 37. Qd2+ {[%clk
0:00:02]} 37... g5 {[%clk 0:00:23.7]} 0-1

[Event "*** Titled Tuesday Blitz"]
[Site "Chess.com"]
[Date "2020.04.28"]
[Round "5"]
[White "GMMarcinDziuba"]
[Black "MITerryble"]
[Result "0-1"]
[WhiteElo "2606"]
[BlackElo "2875"]
[TimeControl "180+1"]
[EndTime "10:55:58 PDT"]
[Termination "MITerryble won by resignation"]

1. e4 {[%clk 0:02:59.7]} 1... e6 {[%clk 0:02:59.9]} 2. d3 {[%clk 0:02:58.9]}
2... d5 {[%clk 0:03:00.3]} 3. Nd2 {[%clk 0:02:59.5]} 3... Nf6 {[%clk 0:03:00.8]}
4. Ngf3 {[%clk 0:02:59.7]} 4... b6 {[%clk 0:03:01.3]} 5. g3 {[%clk 0:02:57.9]}
5... dxe4 {[%clk 0:03:01.7]} 6. dxe4 {[%clk 0:02:56.9]} 6... Bc5 {[%clk
0:03:02.1]} 7. Bd3 {[%clk 0:02:40]} 7... e5 {[%clk 0:02:59.7]} 8. O-O {[%clk
0:02:37.7]} 8... Bh3 {[%clk 0:02:56]} 9. Re1 {[%clk 0:02:36.9]} 9... Ng4 {[%clk
0:02:54.6]} 10. Re2 {[%clk 0:02:36.3]} 10... O-O {[%clk 0:02:49.8]} 11. Nb3
{[%clk 0:02:35]} 11... Be7 {[%clk 0:02:49.9]} 12. Bd2 {[%clk 0:02:30.1]} 12...
a5 {[%clk 0:02:42]} 13. a4 {[%clk 0:02:29.6]} 13... Nd7 {[%clk 0:02:32.3]} 14.
Bc4 {[%clk 0:02:22.6]} 14... h6 {[%clk 0:02:11]} 15. Bc3 {[%clk 0:02:21.8]}
15... Bd6 {[%clk 0:02:09.2]} 16. Nh4 {[%clk 0:02:11.3]} 16... Qf6 {[%clk
0:02:08.8]} 17. Rd2 {[%clk 0:02:04.4]} 17... Nc5 {[%clk 0:02:04.3]} 18. Bd5
{[%clk 0:01:37.7]} 18... Rad8 {[%clk 0:01:58.2]} 19. Nf5 {[%clk 0:01:37.4]}
19... Nxb3 {[%clk 0:01:50.3]} 20. cxb3 {[%clk 0:01:23.1]} 20... Bc5 {[%clk
0:01:50.4]} 21. Qf3 {[%clk 0:01:05.1]} 21... c6 {[%clk 0:01:15.9]} 22. Bc4
{[%clk 0:00:43.6]} 22... Rxd2 {[%clk 0:01:15.3]} 23. Bxd2 {[%clk 0:00:44.5]}
23... Nxf2 {[%clk 0:01:08.2]} 24. Be3 {[%clk 0:00:37.9]} 24... Bxe3 {[%clk
0:00:57.2]} 25. Qxe3 {[%clk 0:00:37.5]} 25... Ng4 {[%clk 0:00:15.3]} 26. Qxb6
{[%clk 0:00:34.8]} 26... g6 {[%clk 0:00:15]} 27. Nh4 {[%clk 0:00:27]} 27... Rd8
{[%clk 0:00:10.5]} 28. Bf1 {[%clk 0:00:25.7]} 28... Rd4 {[%clk 0:00:07]} 29. Nf5
{[%clk 0:00:20.5]} 29... Bxf1 {[%clk 0:00:05.1]} 30. Rxf1 {[%clk 0:00:18.4]}
30... gxf5 {[%clk 0:00:05.3]} 31. Rxf5 {[%clk 0:00:17.9]} 31... Qd6 {[%clk
0:00:04.3]} 32. Kg2 {[%clk 0:00:14.8]} 32... Ne3+ {[%clk 0:00:04.1]} 33. Kh3
{[%clk 0:00:14.6]} 33... Nxf5 {[%clk 0:00:05]} 34. exf5 {[%clk 0:00:15.1]} 34...
Kg7 {[%clk 0:00:05.5]} 35. Qxa5 {[%clk 0:00:14.1]} 35... Qf6 {[%clk 0:00:05.7]}
36. g4 {[%clk 0:00:13.6]} 36... Rd3+ {[%clk 0:00:04.9]} 37. Kg2 {[%clk
0:00:13.3]} 37... e4 {[%clk 0:00:05.8]} 38. Qb4 {[%clk 0:00:09.7]} 38... Qxb2+
{[%clk 0:00:05.5]} 0-1

[Event "*** Titled Tuesday Blitz"]
[Site "Chess.com"]
[Date "2020.04.28"]
[Round "5"]
[White "AnonymusDonkey"]
[Black "Sjakkerntobi"]
[Result "1-0"]
[WhiteElo "2346"]
[BlackElo "2186"]
[TimeControl "180+1"]
[EndTime "10:55:58 PDT"]
[Termination "AnonymusDonkey won by resignation"]

1. e4 {[%clk 0:03:00.9]} 1... e6 {[%clk 0:02:55.2]} 2. d4 {[%clk 0:03:00.6]}
2... d5 {[%clk 0:02:55.8]} 3. e5 {[%clk 0:03:01]} 3... c5 {[%clk 0:02:55.5]} 4.
c3 {[%clk 0:03:01.9]} 4... Nc6 {[%clk 0:02:56]} 5. Nf3 {[%clk 0:03:02]} 5... Bd7
{[%clk 0:02:56.5]} 6. Na3 {[%clk 0:03:02]} 6... cxd4 {[%clk 0:02:56.3]} 7. cxd4
{[%clk 0:03:02.9]} 7... Bxa3 {[%clk 0:02:56.7]} 8. bxa3 {[%clk 0:03:03.4]} 8...
Nge7 {[%clk 0:02:57.2]} 9. Bd3 {[%clk 0:03:03]} 9... Nf5 {[%clk 0:02:46.1]} 10.
O-O {[%clk 0:03:02.2]} 10... O-O {[%clk 0:02:35]} 11. Bc2 {[%clk 0:02:49.2]}
11... Qb6 {[%clk 0:02:09.2]} 12. Rb1 {[%clk 0:02:46.3]} 12... Qa6 {[%clk
0:02:06.9]} 13. Bd3 {[%clk 0:02:08.3]} 13... Qa5 {[%clk 0:01:42.8]} 14. Rb5
{[%clk 0:02:07.6]} 14... Qc7 {[%clk 0:01:32]} 15. Bxf5 {[%clk 0:01:49.1]} 15...
exf5 {[%clk 0:01:30.2]} 16. Rxd5 {[%clk 0:01:49.6]} 16... Be6 {[%clk 0:01:25.8]}
17. Rd6 {[%clk 0:01:47.8]} 17... Ne7 {[%clk 0:01:18.4]} 18. d5 {[%clk
0:01:39.6]} 18... Bd7 {[%clk 0:01:13.1]} 19. Bg5 {[%clk 0:01:33.7]} 19... Nc8
{[%clk 0:01:08.6]} 20. Rxd7 {[%clk 0:01:23.4]} 20... Qxd7 {[%clk 0:01:03.5]} 21.
Qb3 {[%clk 0:01:15.8]} 21... Nb6 {[%clk 0:01:02.8]} 22. Rd1 {[%clk 0:01:15]}
22... h6 {[%clk 0:00:46.7]} 23. e6 {[%clk 0:01:12.9]} 23... Qd6 {[%clk
0:00:39.8]} 24. Bh4 {[%clk 0:01:07.3]} 24... g5 {[%clk 0:00:38.1]} 25. Nxg5
{[%clk 0:00:54.5]} 25... hxg5 {[%clk 0:00:38]} 26. Bxg5 {[%clk 0:00:55.4]} 26...
f6 {[%clk 0:00:22.7]} 27. Bh6 {[%clk 0:00:51.7]} 27... Rfd8 {[%clk 0:00:21]} 28.
Qh3 {[%clk 0:00:35.9]} 28... Nxd5 {[%clk 0:00:18.6]} 29. Qxf5 {[%clk 0:00:35.4]}
29... Qe7 {[%clk 0:00:06.2]} 30. Rd3 {[%clk 0:00:16.4]} 30... Nf4 {[%clk
0:00:05.3]} 31. Rg3+ {[%clk 0:00:15.7]} 31... Kh8 {[%clk 0:00:04.6]} 32. h4
{[%clk 0:00:15]} 32... Rd1+ {[%clk 0:00:04]} 33. Kh2 {[%clk 0:00:14.3]} 33...
Nxe6 {[%clk 0:00:04.4]} 34. Re3 {[%clk 0:00:09.9]} 34... Re8 {[%clk 0:00:04.6]}
35. Qg6 {[%clk 0:00:08.5]} 35... Qd6+ {[%clk 0:00:04.9]} 36. g3 {[%clk 0:00:08]}
36... Rf8 {[%clk 0:00:04.5]} 37. Rxe6 {[%clk 0:00:06]} 37... Rh1+ {[%clk
0:00:05.2]} 38. Kxh1 {[%clk 0:00:06]} 38... Qd5+ {[%clk 0:00:05.8]} 39. Kh2
{[%clk 0:00:06]} 39... Rf7 {[%clk 0:00:04]} 40. Re8+ {[%clk 0:00:05.6]} 1-0

[Event "*** Titled Tuesday Blitz"]
[Site "Chess.com"]
[Date "2020.04.28"]
[Round "5"]
[White "MergenKakabaev"]
[Black "giantslayer83"]
[Result "1-0"]
[WhiteElo "2451"]
[BlackElo "2677"]
[TimeControl "180+1"]
[EndTime "10:55:59 PDT"]
[Termination "MergenKakabaev won on time"]

1. e4 {[%clk 0:03:00.9]} 1... e5 {[%clk 0:02:59.2]} 2. Nf3 {[%clk 0:03:00.3]}
2... Nc6 {[%clk 0:02:59.1]} 3. Bb5 {[%clk 0:03:00.5]} 3... a6 {[%clk 0:02:59.2]}
4. Ba4 {[%clk 0:03:00.5]} 4... d6 {[%clk 0:02:59.5]} 5. O-O {[%clk 0:03:00]}
5... Bd7 {[%clk 0:02:59.9]} 6. h3 {[%clk 0:03:00.1]} 6... g6 {[%clk 0:02:48.2]}
7. c3 {[%clk 0:02:59.5]} 7... Bg7 {[%clk 0:02:47.1]} 8. d4 {[%clk 0:02:59.5]}
8... b5 {[%clk 0:02:44.8]} 9. Bc2 {[%clk 0:02:59]} 9... Nf6 {[%clk 0:02:44.9]}
10. Nbd2 {[%clk 0:02:58]} 10... O-O {[%clk 0:02:45]} 11. Re1 {[%clk 0:02:57.6]}
11... Re8 {[%clk 0:02:45]} 12. Nf1 {[%clk 0:02:56.8]} 12... Bc8 {[%clk
0:02:26.5]} 13. Ng3 {[%clk 0:02:56.1]} 13... Bb7 {[%clk 0:02:26.8]} 14. a4
{[%clk 0:02:56]} 14... Qe7 {[%clk 0:02:12.7]} 15. h4 {[%clk 0:02:45.1]} 15...
Qf8 {[%clk 0:01:45.2]} 16. Bd3 {[%clk 0:02:30.6]} 16... b4 {[%clk 0:01:37.7]}
17. d5 {[%clk 0:02:28.8]} 17... Ne7 {[%clk 0:01:37.2]} 18. c4 {[%clk 0:02:28.7]}
18... a5 {[%clk 0:01:30.7]} 19. h5 {[%clk 0:02:23.4]} 19... Nd7 {[%clk
0:01:30.4]} 20. Bd2 {[%clk 0:02:16]} 20... Nc5 {[%clk 0:01:29.9]} 21. Bc2 {[%clk
0:02:15.9]} 21... c6 {[%clk 0:01:25.4]} 22. Qc1 {[%clk 0:02:01.1]} 22... cxd5
{[%clk 0:01:24.7]} 23. exd5 {[%clk 0:02:00.3]} 23... Rac8 {[%clk 0:01:19.3]} 24.
h6 {[%clk 0:01:57.7]} 24... Bh8 {[%clk 0:01:18.8]} 25. Qd1 {[%clk 0:01:52.5]}
25... f5 {[%clk 0:01:13.9]} 26. Ng5 {[%clk 0:01:51]} 26... f4 {[%clk 0:00:59.1]}
27. N3e4 {[%clk 0:01:50.5]} 27... Nxe4 {[%clk 0:00:54.2]} 28. Nxe4 {[%clk
0:01:51.4]} 28... Nf5 {[%clk 0:00:52.7]} 29. g4 {[%clk 0:01:49.4]} 29... Nd4
{[%clk 0:00:51]} 30. Bd3 {[%clk 0:01:36.2]} 30... Qxh6 {[%clk 0:00:24.4]} 31.
Kg2 {[%clk 0:01:33.2]} 31... Qh4 {[%clk 0:00:13.8]} 32. f3 {[%clk 0:01:23.1]}
32... Qe7 {[%clk 0:00:09.5]} 33. Rh1 {[%clk 0:01:22.1]} 33... Rc7 {[%clk
0:00:08.6]} 34. Be1 {[%clk 0:01:16.5]} 34... Rec8 {[%clk 0:00:08.4]} 35. b3
{[%clk 0:01:14.2]} 35... Qd7 {[%clk 0:00:06.7]} 36. Bf2 {[%clk 0:01:13.7]} 36...
Bxd5 {[%clk 0:00:04.9]} 37. cxd5 {[%clk 0:01:12.8]} 37... Nc2 {[%clk 0:00:05.2]}
38. Rc1 {[%clk 0:01:10.6]} 38... Ne3+ {[%clk 0:00:05.2]} 39. Bxe3 {[%clk
0:01:10.8]} 39... fxe3 {[%clk 0:00:06.1]} 40. Rxc7 {[%clk 0:01:10.4]} 40... Qxc7
{[%clk 0:00:07]} 41. Qe2 {[%clk 0:01:10.6]} 41... Qb6 {[%clk 0:00:06.5]} 42. g5
{[%clk 0:01:09.2]} 42... Rc7 {[%clk 0:00:05.7]} 43. Bc4 {[%clk 0:01:08.8]} 43...
Rf7 {[%clk 0:00:04.3]} 44. Re1 {[%clk 0:01:08]} 44... Bg7 {[%clk 0:00:04]} 45.
Qxe3 {[%clk 0:01:08.1]} 45... Qxe3 {[%clk 0:00:03.6]} 46. Rxe3 {[%clk
0:01:08.2]} 46... Rd7 {[%clk 0:00:04.3]} 47. Re2 {[%clk 0:01:07.6]} 47... Kf7
{[%clk 0:00:02.7]} 48. Rc2 {[%clk 0:01:07.4]} 48... Ke7 {[%clk 0:00:03.1]} 49.
Bb5 {[%clk 0:01:07.3]} 49... Rb7 {[%clk 0:00:03.2]} 50. Rc6 {[%clk 0:01:07]}
50... h6 {[%clk 0:00:03.1]} 51. gxh6 {[%clk 0:01:06.2]} 51... Bxh6 {[%clk
0:00:03]} 52. Nxd6 {[%clk 0:01:06.8]} 52... Rd7 {[%clk 0:00:02.5]} 53. Nf5+
{[%clk 0:01:03.4]} 53... gxf5 {[%clk 0:00:02]} 54. Re6+ {[%clk 0:01:03.8]} 54...
Kd8 {[%clk 0:00:01.4]} 55. Bxd7 {[%clk 0:01:04.7]} 55... Bf4 {[%clk 0:00:01.3]}
56. Bb5 {[%clk 0:01:03.2]} 56... e4 {[%clk 0:00:01.1]} 57. d6 {[%clk 0:01:02.2]}
1-0